Cogmind - Beta 13 @@@ ROGUE MODE // 2024.03.07 @ 20:13:45 Player: ChromeKnight Result: Destroyed by Autobeam Turret with Autobeam Performance ------------- Evolutions (0) 0 Regions Visited (3) 600 Robots Destroyed (18) 90 Value Destroyed (445) 445 Prototype IDs (1) 20 Alien Tech Used (0) 0 Bonus (0) 0 TOTAL SCORE: 1155 Bonus ------- None Cogmind --------- Core Integrity 0/250 Matter 113/300 Energy 180/180 System Corruption 0% Temperature Cool (46) Movement Core (300) Ox5 Location -10/Subcaves Parts ------- > --- POWER (1) -------- Meta Core > --- PROPULSION (2+1) - (None) > --- UTILITY (2+1) ---- Small Storage Unit Sensor Array (+) Signal Interpreter > --- WEAPON (2+1) ----- Light Assault Rifle (+) Subdweller Machine Gun > --- INVENTORY (8) ---- Light Ion Engine Subdweller Power Source Large Storage Unit Compact Matter Pod (150) Battle Rifle Scrap Shield Fragment (44) Scrap Shield Fragment (30) Peak State ------------ > --- POWER ------------ Meta Core > --- PROPULSION ------- Aluminum Leg Aluminum Leg > --- UTILITY ---------- Small Storage Unit Sensor Array Signal Interpreter > --- WEAPON ----------- Light Assault Rifle Barrage Gun Grenade Launcher > --- INVENTORY -------- Light Ion Engine Subdweller Power Source Large Storage Unit Compact Matter Pod Battle Rifle Scrap Shield Fragment Scrap Shield Fragment [Rating: 24] Favorites ----------- Power Light Ion Engine Engine Light Ion Engine Power Core Meta Core Propulsion Aluminum Leg Leg Aluminum Leg Utility Small Storage Unit Device Sensor Array Storage Small Storage Unit Processor Signal Interpreter Weapon Light Assault Rifle Ballistic Gun Light Assault Rifle Launcher Grenade Launcher Build | -11 -10 -10 -10 ------- Run | Yrd Mat Min Sub Slots Evolved . | . . . . Power . | . . . . Propulsion . | . . . . Utility . | . . . . Weapon . | . . . . Parts Attached 15 | 5 1 2 7 Power 2 | 1 . . 1 Engine 1 | 1 . . . Core 1 | . . . 1 Reactor . | . . . . Propulsion 2 | 2 . . . Treads . | . . . . Leg 2 | 2 . . . Wheel . | . . . . Hover . | . . . . Flight . | . . . . Utility 3 | 1 1 . 1 Device 1 | . . . 1 Storage 1 | 1 . . . Processor 1 | . 1 . . Hackware . | . . . . Protection . | . . . . Artifact . | . . . . Weapon 8 | 1 . 2 5 Energy Gun . | . . . . Energy Cannon . | . . . . Ballistic Gun 6 | 1 . 2 3 Ballistic Cannon . | . . . . Launcher 2 | . . . 2 Special Weapon . | . . . . Impact Weapon . | . . . . Slashing Weapon . | . . . . Piercing Weapon . | . . . . Special Melee Weapon . | . . . . Unidentified Prototypes 1 | . . . 1 Parts Lost 5 | . . . 5 Power . | . . . . Propulsion 2 | . . . 2 Utility . | . . . . Weapon 3 | . . . 3 Highest Loss Streak 2 | . . . 2 To Critical Strikes . | . . . . Average Slot Usage (%) 93 | . 74 100 89 Engine 8 | . 14 14 3 Core 3 | . . . 7 Leg 23 | . 28 28 19 Device 3 | . . . 7 Storage 12 | . 14 14 10 Processor 11 | . 3 14 10 Ballistic Gun 19 | . 14 28 12 Launcher 8 | . . . 17 Naked Turns . | . . . . Heaviest Build 20 | 9 9 10 20 Greatest Support 20 | 20 20 20 20 Greatest Overweight (x) 1 | . . . 1 Average Overweight (x) . | . . . . Largest Inventory Capacity 8 | 8 8 8 8 Average Capacity 7 | 7 8 8 8 Most Carried 8 | . 2 7 8 Average Carried 5 | . 1 4 7 Final Capacity 8 | 8 8 8 8 Final Carried 7 | . 2 6 7 Class Distribution -------------------- 65% | Mutant 34% | Skirmisher Dominant Class ---------------- Mutant | -10/Materials Mutant | -10/Mines Skirmisher | -10/Subcaves Resources | -11 -10 -10 -10 ----------- Run | Yrd Mat Min Sub Matter Collected 539 | 186 . 136 217 Remotely . | . . . . Salvage Created 333 | . 27 56 250 Parts 27 | . 3 6 18 Haulers Intercepted . | . . . . Recyclers Shooed . | . . . . Parts Field Recycled . | . . . . Retrieved Matter . | . . . . Parts Self-Destructed 8 | . . . 8 Prevented . | . . . . Kills | -11 -10 -10 -10 ------- Run | Yrd Mat Min Sub Combat Hostiles Destroyed 17 | . 2 2 13 Guns 7 | . 2 2 3 AOE 10 | . . . 10 Classes Destroyed 4 | . 1 1 2 Builder 1 | . . 1 . Swarmer 8 | . 2 2 4 Artisan 1 | . . . 1 Subdweller 9 | . . . 9 Best Kill Streak 3 | . 2 1 3 Combat Bots Only 3 | . 2 1 3 Max Kills in Single Turn 1 | . 1 1 1 Gunslinging . | . . . . Exploded 1 | . . . 1 Melee . | . . . . Uniques/NPCs Destroyed . | . . . . Combat | -11 -10 -10 -10 -------- Run | Yrd Mat Min Sub Hostile Shots Fired 106 | . 23 9 74 Missed 28 | . 2 4 22 Damage Taken 896 | . 160 41 695 Core 252 | . 26 26 200 Absorbed by Shields . | . . . . Core Remaining (%) 100 | 100 . . . Volleys Fired 78 | . 28 7 43 Largest 3 | . 1 2 3 Hottest 83 | . 20 40 83 Shots Fired 123 | . 28 14 81 Gun 98 | . 28 14 56 Cannon . | . . . . Launcher 25 | . . . 25 Special . | . . . . Kinetic 98 | . 28 14 56 Thermal . | . . . . Explosive 25 | . . . 25 Electromagnetic . | . . . . Robot Hit Streak 7 | . 5 2 7 Robot Miss Streak 4 | . 3 4 4 Penetration Max . | . . . . Secondary Targets . | . . . . Shots Hit Robots 74 | . 17 6 51 Core Hits 35 | . 5 4 26 Critical Kills . | . . . . Critical Parts Destroyed 1 | . 1 . . Critical Strikes 2 | . 1 . 1 Destroy 2 | . 1 . 1 Melee Attacks . | . . . . Impact . | . . . . Slashing . | . . . . Piercing . | . . . . Sneak Attacks . | . . . . Combat Hostiles . | . . . . Follow-up Attacks . | . . . . Damage Inflicted 1879 | . 157 58 1664 Guns 572 | . 157 58 357 Cannons . | . . . . Explosions 1307 | . . . 1307 Melee . | . . . . Ramming . | . . . . Kinetic 572 | . 157 58 357 Thermal . | . . . . Explosive 1307 | . . . 1307 Electromagnetic . | . . . . Impact . | . . . . Slashing . | . . . . Piercing . | . . . . Highest Corruption . | . . . . Average Corruption . | . . . . Corruption Purged . | . . . . Corruption Blocked . | . . . . Overload Shots . | . . . . Overflow Damage 8 | . . . 8 Projectiles . | . . . . Explosions 8 | . . . 8 Melee . | . . . . Knockbacks . | . . . . Impact . | . . . . Kinetic . | . . . . Secondary . | . . . . Self-Inflicted Damage 62 | . . . 62 Shots 2 | . . . 2 Rammed . | . . . . Targets Rammed . | . . . . Kicked . | . . . . Crushed . | . . . . Highest Temperature 28 | . . . 28 Average Temperature 20 | . . . 20 Received Heat Transfer 138 | . . . 138 Siege Activations . | . . . . Robots Corrupted . | . . . . Combat Hostiles . | . . . . Parts Fried . | . . . . Impact Corruptions . | . . . . Robots Melted . | . . . . Combat Hostiles . | . . . . Parts Melted . | . . . . Heat Transferred . | . . . . Parts Sabotaged . | . . . . Parts Stolen . | . . . . Parts Stripped . | . . . . Power Chain Reactions . | . . . . Alert | -11 -10 -10 -10 ------- Run | Yrd Mat Min Sub Peak Influence 110 | . 65 110 . Initial 25 | . . 25 . Average 21 | . 29 21 . Maximum Alert Level . | . . . . Low Security (%) 100 | 100 100 100 . Level 1 . | . . . . Level 2 . | . . . . Level 3 . | . . . . Level 4 . | . . . . Level 5 . | . . . . High Security . | . . . . Max Security . | . . . . Squads Dispatched 1 | . 1 . . Investigation . | . . . . Extermination . | . . . . Reinforcement 1 | . 1 . . Assault . | . . . . Garrison . | . . . . Intercept . | . . . . Searches Triggered . | . . . . Construction Impeded . | . . . . Haulers Reinforced . | . . . . Active Scanning Responses . | . . . . Cargo Convoy Interrupts . | . . . . Stealth | -11 -10 -10 -10 --------- Run | Yrd Mat Min Sub Distress Signals . | . . . . Communications Jammed . | . . . . Distress Signals . | . . . . Times Spotted 41 | . 7 5 29 Peak Tracking Total 3 | . 3 3 3 Tactical Retreats 5 | . 1 1 3 Traps | -11 -10 -10 -10 ------- Run | Yrd Mat Min Sub Traps Triggered 1 | . . . 1 Indirectly . | . . . . Trap Hack Attempts . | . . . . Triggered . | . . . . Disarmed . | . . . . Reprogrammed . | . . . . Reused . | . . . . Traps Extracted . | . . . . Installed . | . . . . Triggered . | . . . . Machines | -11 -10 -10 -10 ---------- Run | Yrd Mat Min Sub Machines Disabled 2 | . . . 2 Max in Single Turn 1 | . . . 1 Machines Repaired . | . . . . Machines Dismantled . | . . . . Machines Sabotaged . | . . . . Overloaded Fab Kills . | . . . . Hacking | -11 -10 -10 -10 --------- Run | Yrd Mat Min Sub Machines Accessed 1 | . . . 1 Terminals . | . . . . Fabricators . | . . . . Repair Stations . | . . . . Recycling Units . | . . . . Scanalyzers . | . . . . Garrison Access . | . . . . Total Hacks 3 | . . . 3 Successful 3 | . . . 3 Failed . | . . . . Catastrophic . | . . . . Database Lockouts . | . . . . Manual . | . . . . Terminals . | . . . . Fabricators . | . . . . Repair Stations . | . . . . Recycling Units . | . . . . Scanalyzers . | . . . . Garrison Access . | . . . . Terminal Hacks 3 | . . . 3 Record 3 | . . . 3 Fabricator Hacks . | . . . . Repair Station Hacks . | . . . . Recycling Unit Hacks . | . . . . Scanalyzer . | . . . . Garrison Access Hacks . | . . . . Unauthorized Hacks . | . . . . Terminals . | . . . . Fabricators . | . . . . Repair Stations . | . . . . Recycling Units . | . . . . Scanalyzers . | . . . . Garrison Access . | . . . . Data Cores Recovered . | . . . . Used . | . . . . Hacking Detections . | . . . . Full Trace Events . | . . . . Feedback Events . | . . . . Feedback Blocked . | . . . . Robot Schematics Acquired . | . . . . Robots Built . | . . . . Authchips . | . . . . Time . | . . . . Total Robot Build Rating . | . . . . Part Schematics Acquired . | . . . . Parts Built . | . . . . Authchips . | . . . . Time . | . . . . Total Part Build Rating . | . . . . Parts Repaired . | . . . . Time . | . . . . Parts Recycled . | . . . . Recycled Matter . | . . . . Retrieved Matter . | . . . . Retrieved Components . | . . . . Parts Scanalyzed . | . . . . Part Schematics Acquired . | . . . . Parts Damaged . | . . . . Bothacking | -11 -10 -10 -10 ------------ Run | Yrd Mat Min Sub Used RIF Installer . | . . . . Robots Hacked . | . . . . Non-combat . | . . . . Combat . | . . . . Robot Hacks Applied . | . . . . Relay Couplers Released . | . . . . Fabnet Peak Effective % . | . . . . Robots Rewired . | . . . . Allies Hacked . | . . . . Hacks Repelled . | . . . . Allies | -11 -10 -10 -10 -------- Run | Yrd Mat Min Sub Total Allies . | . . . . Largest Group . | . . . . Highest-Rated Group . | . . . . Highest-Rated Ally . | . . . . Total Orders . | . . . . Ally Attacks . | . . . . Total Damage . | . . . . Kills . | . . . . Allies Corrupted . | . . . . Allies Melted . | . . . . Intel | -11 -10 -10 -10 ------- Run | Yrd Mat Min Sub Robot Analysis Total . | . . . . Derelict Logs Recovered 2 | . . 1 1 Drone Launches . | . . . . Drone Recoveries . | . . . . Exploration | -11 -10 -10 -10 ------------- Run | Yrd Mat Min Sub Turns Passed 1891 | 47 127 835 882 Spaces Moved 944 | 37 60 280 567 Core 6 | 6 . . . Treads . | . . . . Legs 938 | 31 60 280 567 Wheels . | . . . . Hover . | . . . . Flight . | . . . . Fastest Speed 50 | 50 120 120 120 Average Speed 124 | 108 120 120 128 Slowest Speed 190 | 120 120 120 190 Overloaded Moves . | . . . . Propulsion Burnouts . | . . . . Robots Hopped . | . . . . Cave-ins Triggered . | . . . . Exploration Rate (%) 29 | 3 21 59 33 Regions Visited 3 Branch Regions 2 Pre-discovered Areas 1 | . . . 1 Known Exits Taken 2 | . 1 1 . Unknown Exits Taken 1 | 1 . . . Scrap Searched 3 | . . 1 2 Spaces Dug . | . . . . Terrain Destroyed 121 | . . . 121 Melee . | . . . . Projectile . | . . . . AOE 121 | . . . 121 Terrain Rammed . | . . . . Walls Destroyed . | . . . . Machines Disabled . | . . . . Actions | -11 -10 -10 -10 --------- Run | Yrd Mat Min Sub Total 1560 | 41 92 768 659 Wait 508 | . 2 474 32 Move 941 | 36 59 279 567 Hop . | . . . . Pick Up 14 | . 2 5 7 Fast Attach 7 | 5 1 . 1 Attach 5 | . . 1 4 Detach . | . . . . Swap 3 | . . 1 2 Drop 4 | . . 1 3 Fire 78 | . 28 7 43 Melee . | . . . . Ram . | . . . . Kick . | . . . . Crush . | . . . . Escape Stasis . | . . . . Rewire . | . . . . Trap . | . . . . Miscellaneous . | . . . . Route ------- -11/Scrapyard -10/Materials (discovered 2 exits: *Min x2) -10/Mines (discovered 3 exits: *Mat x2 / *Sub) -10/Subcaves (discovered 1 exit: [*Rec]) History --------- Turn | Location | Event 3 | -11/Scrapyard | Discovered new exit (range 15) 48 | -11/Scrapyard | Entered Materials 48 | -10/Materials | Discovered new exit (range 7) 149 | -10/Materials | Discovered new exit (range 8) 174 | -10/Materials | Identified exit to Mines 175 | -10/Materials | Entered Mines 180 | -10/Mines | Met a Derelict bent on vengeance 310 | -10/Mines | Build established: Mutant 452 | -10/Mines | Learned Materials emergency access door positions 453 | -10/Mines | Discovered new exit (range 9) 494 | -10/Mines | Discovered new exit (range 5) 500 | -10/Mines | Identified exit to Materials 502 | -10/Mines | Received a Rocket Launcher from a helpful Derelict 1003 | -10/Mines | Discovered new exit (range 6) 1009 | -10/Mines | Identified exit to Subcaves 1010 | -10/Mines | Entered Subcaves 1070 | -10/Subcaves | Learned location of Storage (-8) 1114 | -10/Subcaves | Visited Clippyterm 1118 | -10/Subcaves | Learned Factory stockpile data 1190 | -10/Subcaves | A Subdweller sparked back to life 1190 | -10/Subcaves | A Subdweller sparked back to life 1190 | -10/Subcaves | A Subdweller sparked back to life 1207 | -10/Subcaves | Found Prototype Power Core 1207 | -10/Subcaves | Identified Meta Core 1209 | -10/Subcaves | Attached Meta Core, gained temporary slots: Propulsion, Utility, Weapon 1271 | -10/Subcaves | Disturbed a concealed Subdweller 1278 | -10/Subcaves | Core integrity fell below 50% 1506 | -10/Subcaves | Build established: Skirmisher 1882 | -10/Subcaves | Discovered new exit (range 8) 1884 | -10/Subcaves | Core integrity fell below 20% 1892 | -10/Subcaves | Destroyed by Autobeam Turret with Autobeam Last Messages --------------- repair. 01783_ Lgt. Ion Engine fries itself beyond repair. 01785_ Lgt. Ion Engine fries itself beyond repair. 01828_ Triggered Piercing Trap. 01828_ Spikes shoot up from the floor. 01828_ Critical hit (Impale). 01875_ S-10 Pest destroyed. 01878_ Machine disabled. 01880_ Lgt. Assault Rifle fries itself beyond repair. 01882_ Acquired 14 matter. 01882_ EXIT=FOUND 01883_ Lgt. Ion Engine fries itself beyond repair. 01883_ Aluminum Leg destroyed. 01885_ Flight Unit fries itself beyond repair. 01887_ Machine disabled. 01890_ Barrage Gun destroyed. Map ----- +----------------------------------------------------+ | ?????? ????## "?#""" ## #??????????????? | | ????????????# "#"""" ## ## #??????????????? | | ????????????# "" ""### #####??????????????? | | ????????????# ##??#" ###?# #????????????????? | | ????????????##????# #????# #????????????????? | | ?????????????????#""?????## ##???????????????? | | ?????????????????##???????# ##??###????##???? | | ?????????????????????? #?# #### ##??? ###?? | | ?????????????????????? # ### ## ##?? #?? | | ??????????????????????? ?### ### #??# | | ???????????????????????? ???# ### | | ????????????????????????# #??# | | ???????????????????????## #### | | ???????????????????????# ### ### | | ????????????????????????# ##? | | ?????????????????#???????# ## | | ?????????????????# ?????## ## ## # | | ???????????????### ##??## ##### # | | ?????????????### ?# ##???## * ## | | ?????????????? ## ####?# ##?? | | ???????????????# # % # #### ##???? | | ??????????????????# "" ##??????? | | ??????????????????## "" "" #??????? | | ???????????????????### " # ##??????? | | ?????????????????????## =##### #####???????? | | ??????????????????????# %@##??# #???????????? | | ???????????????????#" ??# ##???????????? | | ???????????????????# ## #????????????? | | ???????????????????# ##"" #????????????? | | ???????????????????#" t t "#""" ##????????????? | | ???????????????????# " "# #?????????????? | | ???????????????????#"""" " ""## #?????????????? | | ???????????????????#####<####### #?????????????? | | ???????????????????????##?????## #?????????????? | | ??????????????????????????????# ##?????????????? | | ??????????????????????????????## ##?????????????? | | ???????????????????????????????## #?????????????? | | ????????????????????????????????# #?????????????? | | ????????????????????????????????#^ ????????????? | | ????????????????????????????????# #??????????? | | ????????????????????????????????## ^#??????????? | | ?????????????????????????????????## ?????????? | | ??????????????????????????????????? ????????? | | ???????????????????????????????????# #???????? | | ???????????????????????????????????? # #???????? | | ???????????????????????????????????? ## #???????? | | ???????????????????????????????????? #??#???????? | | ????????????????????????????????????? ??????????? | | ????????????????????????????????????? ??????????? | | ????????????????????????????????????? # ?????????? | +----------------------------------------------------+ Best States ------------- Heat Dissipation 25 Energy Generation 17 Energy Capacity 180 Matter Stores 300 Matter Capacity 300 Sight Range 16 Robot Scan Range 14 Terrain Scan Density 10 Evasion (%) 55 Item Schematics ----------------- None Robot Schematics ------------------ None Fabricated ------------ Nothing Alien Tech Used ----------------- None Achievements -------------- None Challenges ------------ None Game ------ Seed MolecularRefineryEdition Manual? 0 Play Time 00:11:11 Cumulative 435.7 hours Start 2024.03.07 @ 20:05:03 End 2024.03.07 @ 20:13:45 Sessions 1 Manual Loads 0 Difficulty Rogue Special Mode None Game No. 760 Rogue 605 Adventurer 148 Explorer 7 Win Type - Total 19 Types 16/0/2/1/0/0/0/0/0 Lore% 77 Gallery% 87 Achievement% 73 Wizard Run 0 Options --------- Layout 1 ASCII 0 Keyboard 0 Movement Numpad Keybinds 0 Fullscreen 2 Font 24/Smallcaps Map View 50x35 Zoom Use 0% Tactical HUD 1 Map Filters NONE Filters NONE Steam 1 RUN: 8870d26c-e671-4fa8-a000-60b21d28356b